{"text_format":"1","workbook":"xlsx","n_sheets":8,"sheets":["ยุท1","ยุท2","ยุท3","ยุท4","ยุท5","ยุท6","ยุท7","แผนปฏิบัติราชการ 2562E"],"not_rendered":{"charts":0,"images":0,"macros":1,"external_links":0,"defined_names":8,"comments":3,"pivot_tables":0},"unopened":[],"bounds":{"document_bytes":16777216,"sheet_cells":100000,"rows_first":2000,"rows_last":500,"rows_between":2000,"halvings":0,"cell_chars":16384,"cell_head_chars":4096},"cells_cut":0,"cells_raw":0,"read":"whole","date_system":"1900"}

{"sheet":"ยุท1","index":0,"n_rows":12,"n_cols":6,"rows_kept":12,"cut":false,"hidden":false,"merged":[[2,0,2,5],[1,0,1,5],[0,0,0,5]]}
["ยุทธศาสตร์ที่ 1 : ด้านการผลิตบัณฑิต"]
["ยุทธศาสตร์ : จัดการศึกษาที่ได้มาตรฐานสากล เพื่อเป็นเครื่องมือในการพัฒนาประเทศ เป็นที่ยอมรับในภูมิภาคลุ่มน้ำโขง"]
["เป้าประสงค์ : บัณฑิตมีความเป็นเลิศทางวิชาการและเชี่ยวชาญในทักษะวิชาชีพ การเรียนรู้และสร้างสรรค์นวัตกรรม อุตสาหะในการทำงาน มีภาวะผู้นำ มีคุณธรรมจริยธรรมและความพอเพียง มนุษยสัมพันธ์ดี และ มีความสามารถด้านภาษาอังกฤษหรือภาษาต่างประเทศ"]
[]
["ตัวชี้วัด","หน่วย\nที่วัด","ค่า\nเป้าหมาย","ผลการดำเนินงาน\nไตรมาส 2","ร้อยละผลการดำเนินงานเมื่อเทียบกับเป้าหมาย","ปัญหา/\nอุปสรรค"]
["1. ร้อยละบัณฑิตระดับปริญญาตรีที่สอบผ่านใบประกอบวิชาชีพ (กรณีหลักสูตรที่มีวิชาชีพ) ในครั้งแรก","ร้อยละ",85,null,{"$f":"IF(D6<>\"\",(IF(((D6/C6)*100)>=100,\"100.00\",((D6/C6)*100))),\"-\")","v":"-"}]
["2. ร้อยละของจำนวนนักศึกษาที่ได้รับรางวัลทั้งในระดับชาติ หรือระดับนานาชาติ","ร้อยละ",0.75,null,{"$f":"IF(D7<>\"\",(IF(((D7/C7)*100)>=100,\"100.00\",((D7/C7)*100))),\"-\")","v":"-"}]
["3. ร้อยละของบัณฑิตระดับปริญญาตรีที่ได้งานทำหรือประกอบอาชีพอิสระหรือเป็นผู้ประกอบการภายใน 1 ปี","ร้อยละ",85,null,"-"]
["4. ร้อยละของผู้สำเร็จการศึกษาที่ได้งานทำตรงสาขา","ร้อยละ",80,null,"-"]
["5. จำนวนนวัตกรรมของนักศึกษาต่อปี","ผลงาน",25,null,"-"]
["6. ร้อยละของผู้สำเร็จการศึกษาที่สอบผ่านเกณฑ์การทดสอบความรู้ความสามารถด้านภาษาอังกฤษไม่น้อยกว่าระดับ B1 ของ CEFR LEVEL","ร้อยละ",30,null,"-"]
["7. ร้อยละความพึงพอใจของนายจ้างที่มีต่อผู้สำเร็จการศึกษา (ด้านคุณธรรมจริยธรรม และการเป็นที่พึ่งของสังคมด้านภาวะผู้นำ การทำงานเป็นทีม ความใฝ่รู้ ด้านการพัฒนาตนเอง ความใฝ่รู้ การใช้เทคโนโลยีที่เหมาะสมกับการดำรงชีวิต)","ร้อยละ",80,null,"-"]

{"sheet":"ยุท2","index":1,"n_rows":9,"n_cols":6,"rows_kept":9,"cut":false,"hidden":false,"merged":[[0,0,0,5],[1,0,1,5],[2,0,2,5]]}
["ยุทธศาสตร์ที่ 2 : ด้านการวิจัย"]
["ยุทธศาสตร์ : พัฒนางานวิจัยแบบมุ่งเป้าเพื่อสร้างองค์ความรู้และนวัตกรรม ที่มุ่งเน้นการพัฒนาคุณภาพชีวิตของประชาชนและสังคมในภูมิภาคลุ่มน้ำโขงอย่างยั่งยืน"]
["เป้าประสงค์ : ประชาชนและสังคมได้รับองค์ความรู้และนวัตกรรมเฉพาะด้านที่เป็นที่ยอมรับในระดับชาติ/นานาชาติ และนำองค์ความรู้และนวัตกรรมไปใช้ประโยชน์ในมิติด้านนโยบาย ชุมชนสังคม อุตสาหกรรม และเชิงพาณิชย์"]
[]
["ตัวชี้วัด","หน่วย\nที่วัด","ค่า\nเป้าหมาย","ผลการดำเนินงาน\nไตรมาส 2","ร้อยละผลการดำเนินงานเมื่อเทียบกับเป้าหมาย","ปัญหา/\nอุปสรรค"]
["1. ร้อยละของผลงานวิจัย/งานสร้างสรรค์ที่ได้รับการตีพิมพ์หรือเผยแพร่ในระดับชาติหรือนานาชาติตามเกณฑ์คณะกรรมการข้าราชการพลเรือนในสถาบันอุดมศึกษา (กพอ.) เมื่อเปรียบเทียบกับโครงการวิจัยที่ได้รับงบประมาณ","ร้อยละ",50,null,{"$f":"IF(D6<>\"\",(IF(((D6/C6)*100)>=100,\"100.00\",((D6/C6)*100))),\"-\")","v":"-"}]
["2. ร้อยละขององค์ความรู้ที่สามารถนำไปใช้อ้างอิงในระดับชาติหรือระดับนานาชาติ","ร้อยละ",50,null,{"$f":"IF(D7<>\"\",(IF(((D7/C7)*100)>=100,\"100.00\",((D7/C7)*100))),\"-\")","v":"-"}]
["3. จำนวนนวัตกรรมที่นำไปใช้ประโยชน์","ผลงาน/ชิ้นงาน",15,null,"-"]
["4. ร้อยละของแนวทาง/ข้อเสนอแนะในการพัฒนาในพื้นที่ชุมชน/สังคม","ร้อยละ",50,null,"-"]

{"sheet":"ยุท3","index":2,"n_rows":17,"n_cols":6,"rows_kept":17,"cut":false,"hidden":false,"merged":[[0,0,0,5],[1,0,1,5],[2,0,2,5]]}
["ยุทธศาสตร์ที่ 3 : ด้านการบริการวิชาการ"]
["ยุทธศาสตร์ : ส่งเสริม สนับสนุนการบูรณาการงานบริการวิชาการอย่างมีส่วนร่วม เพื่อเสริมสร้างความเข้มแข็งและเพิ่มศักยภาพของชุมชนและสังคมบนพื้นฐานความพอเพียง เพื่อการพัฒนาที่ยั่งยืน"]
["เป้าประสงค์ : ประชาชน ชุมชน และสังคม ได้รับการบริการวิชาการที่นำไปสู่การเพิ่มศักยภาพในการแก้ปัญหาและพัฒนาเชิงพื้นที่ ตามแนวทางปรัชญาของเศรษฐกิจพอเพียง  และสอดคล้องกับนโยบายของประเทศ"]
[]
["ตัวชี้วัด","หน่วย\nที่วัด","ค่า\nเป้าหมาย","ผลการดำเนินงาน\nไตรมาส 2","ร้อยละผลการดำเนินงานเมื่อเทียบกับเป้าหมาย","ปัญหา/\nอุปสรรค"]
["1. จำนวนโครงการบริการวิชาการอย่างมีส่วนร่วมที่มีประสิทธิภาพและสอดคล้องกับนโยบายของมหาวิทยาลัย","โครงการ",100,null,{"$f":"IF(D6<>\"\",(IF(((D6/C6)*100)>=100,\"100.00\",((D6/C6)*100))),\"-\")","v":"-"}]
["2. จำนวนโครงการบริการวิชาการอย่างมีส่วนร่วมภายใต้ความร่วมมือกับองค์กรภายนอก","โครงการ",25,null,{"$f":"IF(D7<>\"\",(IF(((D7/C7)*100)>=100,\"100.00\",((D7/C7)*100))),\"-\")","v":"-"}]
["3. ร้อยละของจำนวนโครงการบริการวิชาการอย่างมีส่วนร่วมที่นำความรู้ และประสบการณ์มาใช้พัฒนาการเรียนการสอนและการวิจัยของจำนวนโครงการบริการวิชาการทั้งหมด","ร้อยละ",85,null,"-"]
["4. จำนวนกิจกรรมหรือโครงการเกิดขึ้นในชุมชน/สังคมเพื่อตอบสนองสังคมสูงวัย","กิจกรรม/โครงการ",15,null,"-"]
["5. ร้อยละของโรงเรียนที่มีผลสัมฤทธิ์ทางการศึกษาของนักเรียนรายวิชาใดวิชาหนึ่งที่เพิ่มขึ้น","ร้อยละ",60,null,{"$f":"IF(D10<>\"\",(IF(((D10/C10)*100)>=100,\"100.00\",((D10/C10)*100))),\"-\")","v":"-"}]
["6. จำนวนผู้ประกอบการใหม่ที่เกิดขึ้น","ราย",10,null,"-"]
["7. ร้อยละของผู้รับบริการที่นำความรู้ไปใช้ประโยชน์ ","ร้อยละ",95,null,"-"]
["8. ร้อยละความพึงพอใจของผู้รับบริการ/หน่วยงาน/องค์กรที่รับบริการวิชาการและวิชาชีพต่อประโยชน์จากบริการ","ร้อยละ",90,null,"-"]
["9. ร้อยละความพึงพอใจของผู้ใช้บริการผู้ป่วยใน/ผู้ป่วยนอก","ร้อยละ",85,null,"-"]
["10. โรงพยาบาลได้รับการรับรองคุณภาพตามมาตรฐานที่กำหนด","รับรอง",1,null,"-"]
["11. ร้อยละของรายได้ที่เพิ่มขึ้นจากการบริการวิชาการ","ร้อยละ",10,null,"-"]
["12. ร้อยละของโครงการบริการวิชาการ ที่มีการดำเนินการในพื้นที่เป้าหมายของมหาวิทยาลัย และชุมชนเกิดการนำความรู้จากการบริการวิชาการไปใช้อย่างต่อเนื่อง","ร้อยละ",15,null,"-"]

{"sheet":"ยุท4","index":3,"n_rows":14,"n_cols":6,"rows_kept":14,"cut":false,"hidden":false,"merged":[[0,0,0,5],[1,0,1,5],[2,0,2,5]]}
["ยุทธศาสตร์ที่ 4 : ด้านการทำนุบำรุงศิลปวัฒนธรรม"]
["ยุทธศาสตร์ : อนุรักษ์ สืบสาน ภูมิปัญญาท้องถิ่น ศิลปะและวัฒนธรรม เพื่อให้เกิดจิตสำนึกรักท้องถิ่นและประเทศชาติ"]
["เป้าประสงค์ : นักศึกษา บุคลากร และชุมชน ร่วมอนุรักษ์ สืบสาน ภูมิปัญญาท้องถิ่น ศิลปะและวัฒนธรรม เพื่อสร้างสรรค์ผลงานที่สะท้อนคุณค่าภูมิปัญญา ศิลปะและวัฒนธรรมของท้องถิ่นและภูมิภาคลุ่มน้ำโขง"]
[]
["ตัวชี้วัด","หน่วย\nที่วัด","ค่า\nเป้าหมาย","ผลการดำเนินงาน\nไตรมาส 2","ร้อยละผลการดำเนินงานเมื่อเทียบกับเป้าหมาย","ปัญหา/\nอุปสรรค"]
["1. ร้อยละของจำนวนโครงการทำนุบำรุงศิลปวัฒนธรรมที่เชื่อมโยงไปสู่การทำวิจัย/บริการวิชาการ/การเรียนการสอน/ กิจกรรมนักศึกษา","ร้อยละ",20,null,{"$f":"IF(D6<>\"\",(IF(((D6/C6)*100)>=100,\"100.00\",((D6/C6)*100))),\"-\")","v":"-"}]
["2. จำนวนแหล่งเรียนรู้ที่ได้รับการพัฒนาทั้งในและนอกมหาวิทยาลัย","จำนวน",3,null,{"$f":"IF(D7<>\"\",(IF(((D7/C7)*100)>=100,\"100.00\",((D7/C7)*100))),\"-\")","v":"-"}]
["3. จำนวนผลงานกิจกรรมที่มีการเผยแพร่ด้านศิลปวัฒนธรรม ไม่น้อยกว่า กิจกรรมต่อปี","ผลงาน",75,null,"-"]
["4. ร้อยละของนักศึกษาที่เห็นความสำคัญของศิลปวัฒนธรรมไทย","ร้อยละ",80,null,"-"]
["5. ร้อยละความพึงพอใจของผู้เข้าร่วมโครงการต่อประโยชน์ในการทำนุบำรุงศิลปวัฒนธรรม","ร้อยละ",85,null,"-"]
["6. จำนวนกิจกรรมที่ให้นักศึกษาได้แสดงผลงาน","กิจกรรม",10,null,"-"]
["7. ร้อยละของนักศึกษา บุคลากรและชุมชนที่เข้าร่วมกิจกรรมตามเป้าหมายโครงการ","ร้อยละ",84,null,"-"]
["8. จำนวนหมวดความรู้ที่ปรากฎในฐานข้อมูลของมหาวิทยาลัย","หมวดความรู้",3,null,"-"]
["9. จำนวนกิจกรรมที่ดำเนินการร่วมกับหน่วยงานภายนอก","กิจกรรม",10,null,"-"]

{"sheet":"ยุท5","index":4,"n_rows":15,"n_cols":6,"rows_kept":15,"cut":false,"hidden":false,"merged":[[0,0,0,5],[1,0,1,5],[2,0,2,5]]}
["ยุทธศาสตร์ที่ 5 : ด้านการบริหารจัดการ"]
["ยุทธศาสตร์ : บริหารจัดการภายใต้หลักธรรมาภิบาล สามารถปรับตัวให้ทันกับพลวัตรการเปลี่ยนแปลง ยกระดับคุณภาพให้เป็นมาตรฐานสากล และ สร้างสภาพแวดล้อมที่เอื้อต่อการเรียนรู้และการทำงานอย่างมีความสุข"]
["เป้าประสงค์ : องค์กรมีการบริหารจัดการอย่างมีธรรมาภิบาล บริหารทรัพยากรอย่างมีประสิทธิภาพและเกิดประโยชน์สูงสุด มีสภาพแวดล้อมที่เอื้อต่อการเรียนรู้และการทำงานอย่างมีความสุข และได้รับความชื่นชมในภาพลักษณ์ที่ดีของมหาวิทยาลัย"]
[]
["ตัวชี้วัด","หน่วย\nที่วัด","ค่า\nเป้าหมาย","ผลการดำเนินงาน\nไตรมาส 2","ร้อยละผลการดำเนินงานเมื่อเทียบกับเป้าหมาย","ปัญหา/\nอุปสรรค"]
["1. เกณฑ์ระดับคุณธรรมและความโปร่งใสของการดำเนินงานของหน่วยงานภาครัฐ","คะแนน",5,null,{"$f":"IF(D6<>\"\",(IF(((D6/C6)*100)>=100,\"100.00\",((D6/C6)*100))),\"-\")","v":"-"}]
["2. กระบวนงานหลักของมหาวิทยาลัยมีการนำเทคโนโลยีดิจิดัลมาใช้ในการดำเนินการ","ร้อยละ",60,null,{"$f":"IF(D7<>\"\",(IF(((D7/C7)*100)>=100,\"100.00\",((D7/C7)*100))),\"-\")","v":"-"}]
["3. มหาวิทยาลัยอุบลราชธานีเป็นมหาวิทยาลัยในกำกับของรัฐ","ปี","-",null,"-"]
["4. จำนวนคณะ/หน่วยงานที่มีผลประเมินคุณภาพตามเกณฑ์คุณภาพการศึกษาเพื่อการดำเนินการที่เป็นเลิศ (EdPEx) ตั้งแต่ 200 คะแนนขึ้นไป","จำนวน\nหน่วยงาน",1,null,"-"]
["5. รายได้สุทธิที่เพิ่มขึ้นจากการบริหารจัดการทรัพยากร ทรัพย์สิน และทรัพย์สินทางปัญญาของมหาวิทยาลัย จาก Base line ปี 2559","ร้อยละ",4,null,"-"]
["6. ระดับความสำเร็จในการเนินการผ่านเกณฑ์และวิธีปฏิบัติการจัดการของเสียอันตรายที่มหาวิทยาลัยกำหนด","ระดับ",4,null,"-"]
["7. ระดับความพึงพอใจของนักศึกษา/บุคลากรที่มีต่อการบริหารจัดการระบบสาธารณูปโภค และสิ่งแวดล้อมในมหาวิทยาลัย","ระดับ",4.0999999999999996,null,"-"]
["8. ผลการดำเนินการตามมาตรการประหยัดพลังงานของสถาบันอุดมศึกษา","คะแนน",5,null,"-"]
["9. ระดับความสำเร็จในการดำเนินงานตามนโยบายแนวปฏิบัติในการพัฒนามหาวิทยาลัยสีเขียว","ระดับ",4,null,"-"]
["10. จำนวนผลงานของบุคลากรและนักศึกษาที่ได้รับการเผยแพร่สู่สังคมภายนอกเพื่อสร้างภาพลักษณ์ที่ดีให้มหาวิทยาลัย","ผลงาน/ปี",40,null,{"$f":"IF(D15<>\"\",(IF(((D15/C15)*100)>=100,\"100.00\",((D15/C15)*100))),\"-\")","v":"-"}]

{"sheet":"ยุท6","index":5,"n_rows":11,"n_cols":6,"rows_kept":11,"cut":false,"hidden":false,"merged":[[0,0,0,5],[1,0,1,5],[2,0,2,5]]}
["ยุทธศาสตร์ที่ 6 : ด้านการบริหารทรัพยากรมนุษย์"]
["ยุทธศาสตร์ : บริหารและพัฒนาทรัพยากรมนุษย์อย่างเป็นระบบและต่อเนื่องให้สอดรับกับบริบทที่เปลี่ยนแปลงไป"]
["เป้าประสงค์ : มหาวิทยาลัยมีบุคลากรที่มีสมรรถนะสูง มีคุณธรรม จริยธรรม และมีสุขภาวะที่ดี สามารถขับเคลื่อนมหาวิทยาลัยให้บรรลุวิสัยทัศน์ได้อย่างมีประสิทธิภาพและประสิทธิผลอย่างมีความสุขและความผูกพันต่อองค์กร"]
[]
["ตัวชี้วัด","หน่วย\nที่วัด","ค่า\nเป้าหมาย","ผลการดำเนินงาน\nไตรมาส 2","ร้อยละผลการดำเนินงานเมื่อเทียบกับเป้าหมาย","ปัญหา/\nอุปสรรค"]
["1. ร้อยละของบุคลากรที่มีสรรถนะสูง","ร้อยละ",55,null,{"$f":"IF(D6<>\"\",(IF(((D6/C6)*100)>=100,\"100.00\",((D6/C6)*100))),\"-\")","v":"-"}]
["2. จำนวนของบุคลากรที่ได้รับรางวัลหรือการยกย่องเชิดชูเกียรติ หรือสร้างชื่อเสียงให้กับมหาวิทยาลัย","คน",30,null,{"$f":"IF(D7<>\"\",(IF(((D7/C7)*100)>=100,\"100.00\",((D7/C7)*100))),\"-\")","v":"-"}]
["3. ค่าคะแนนเฉลี่ยของบุคลากรทุกระดับที่มีความสุขในการปฏิบัติงาน","คะแนน",50,null,"-"]
["4. ค่าคะแนนเฉลี่ยของบุคลากรที่มีความผูกพันต่อองค์กร","คะแนน",50,null,"-"]
[]
["หมายเหตุ : ตัวชี้วัดที่ 3 และ 4 ผู้รับผิดชอบหลักขอปรับเกณฑ์การวัด หน่วยที่วัด และค่าเป้าหมาย สามารถดูเกณฑ์การวัดใหม่ได้ที่ กดปุ่ม \"คำอธิบายเกณฑ์การวัด\" ของตัวชี้วัดนั้นๆ"]

{"sheet":"ยุท7","index":6,"n_rows":7,"n_cols":6,"rows_kept":7,"cut":false,"hidden":false,"merged":[[0,0,0,5],[1,0,1,5],[2,0,2,5]]}
["ยุทธศาสตร์ที่ 7 : ด้านการพัฒนาระบบเทคโนโลยีสารสนเทศ"]
["ยุทธศาสตร์ : พัฒนาโครงสร้างพื้นฐานด้านเทคโนโลยีสารสนเทศและการสื่อสารที่ทันสมัย มั่นคง ปลอดภัย เพื่อพัฒนาสู่การเป็นมหาวิทยาลัยดิจิทัล"]
["เป้าประสงค์ : มหาวิทยาลัยมีระบบเทคโนโลยีสารสนเทศและการสื่อสารที่ทันสมัย เพื่อสนับสนุนการเรียนรู้ การบริการทางการศึกษา การบริหารจัดการ และการเพิ่มศักยภาพนักศึกษา และบุคลากร เพื่อเข้าสู่สังคมดิจิทัลอย่างรู้เท่าทัน"]
[]
["ตัวชี้วัด","หน่วย\nที่วัด","ค่า\nเป้าหมาย","ผลการดำเนินงาน\nไตรมาส 2","ร้อยละผลการดำเนินงานเมื่อเทียบกับเป้าหมาย","ปัญหา/\nอุปสรรค"]
["1. ระดับความสำเร็จในการพัฒนาระบบสื่อสารภายในมหาวิทยาลัยด้วยโครงข่ายดิจิตอล","ระดับ",5,null,{"$f":"IF(D6<>\"\",(IF(((D6/C6)*100)>=100,\"100.00\",((D6/C6)*100))),\"-\")","v":"-"}]
["2. ระดับความพึงพอใจของผู้ใช้บริการระบบเครือข่าย","ระดับ",3.75,null,{"$f":"IF(D7<>\"\",(IF(((D7/C7)*100)>=100,\"100.00\",((D7/C7)*100))),\"-\")","v":"-"}]

{"sheet":"แผนปฏิบัติราชการ 2562E","index":7,"n_rows":54,"n_cols":9,"rows_kept":54,"cut":false,"hidden":false,"merged":[[1,5,2,5],[0,0,0,8],[1,8,2,8],[1,0,2,0],[1,1,2,1],[1,2,2,2],[1,3,2,3],[1,4,2,4],[33,2,37,2],[3,0,7,0],[3,1,7,1],[3,2,7,2],[8,2,12,2],[18,2,19,2],[28,2,31,2],[50,0,53,0],[50,1,53,1],[50,2,53,2],[1,6,2,6],[1,7,2,7],[13,2,17,2],[40,0,41,0],[40,1,41,1],[40,2,41,2],[45,0,49,0],[46,1,49,1],[46,2,49,2],[28,0,30,0],[28,1,30,1],[33,0,37,0],[33,1,37,1]]}
["ตัวชี้วัดและค่าเป้าหมายการดำเนินงานตามแผนปฏิบัติราชการประจำปี พ.ศ. 2562"]
["พัธกิจ","ประเด็นยุทธศาสตร์","ชื่อโครงการหลักของมหาวิทยาลัย","ตัวชี้วัด","หน่วยที่วัด","ค่าเป้าหมาย","ผลการดำเนินงาน","ผลเทียบแผน","ปัญหา/อุปสรรค"]
[]
["1. สร้างบัณฑิตที่มีคุณภาพ มาตรฐาน มุ่งสู่ความเป็นเลิศทางวิชาการและวิชาชีพ","1. จัดการศึกษาที่ได้มาตรฐานสากล เพื่อเป็นกำลังในการพัฒนาประเทศ และเป็นที่ยอมรับในภูมิภาคลุ่มน้ำโขง","1. โครงการผลิตบัณฑิตด้านวิทยาศาสตร์และเทคโนโลยี\nผู้รับผิดชอบหลัก\nคณะเกษตรศาสตร์\nคณะวิทยาศาสตร์\nคณะวิศวกรรมศาสตร์\nคณะศิลปประยุกต์ฯ","1. จำนวนนักศึกษาใหม่","คน",2230,null,{"$f":"IF(G4<>\"\",(IF(E4=\"ครั้ง\",(IF(G4<F4,\"100.00\",(IF(G4=F4,\"(เท่ากับเป้าหมายจำนวน \"&G4&\" \"&E4&\")\", IF(G4>F4,\"(สูงกว่าเป้าหมายจำนวน \"&G4-F4&\" \"&E4&\")\"))))),IF(E4=\"ร้อยละ\",(IF(G4/F4*100<100,\"(ต่ำกว่าเป้าหมาย \"&E4&\" \"&TEXT((F4-G4),\"0.00\")&\")\",\"100.00\")),(IF(G4/F4*100<100,\"(ต่ำกว่าเป้าหมาย \"&(F4-G4)&\" \"&E4&\")\",\"100.00\"))))),\"\")","v":""}]
[null,null,null,"2. จำนวนผู้สำเร็จการศึกษา","คน",1600,null,""]
[null,null,null,"3. จำนวนนักศึกษาคงอยู่","คน",7200,null,""]
[null,null,null,"4. ร้อยละของผู้สำเร็จการศึกษาตามมาตรฐานหลักสูตร","ร้อยละ",100,null,""]
[null,null,null,"5. ร้อยละของผู้สำเร็จการศึกษาที่จบการศึกษาตามมาตรฐานหลักสูตรภายในระยะเวลาที่กำหนด","ร้อยละ",98,null,""]
[null,null,"2. โครงการผลิตบัณฑิตด้านวิทยาศาสตร์สุขภาพ\nผู้รับผิดชอบหลัก\nคณะเภสัชศาสตร์\nวิทยาแพทยศาสตร์ฯ \n(หลักสูตรสาธารณสุขศาสตร์)","1. จำนวนนักศึกษาใหม่","คน",380,null,""]
[null,null,null,"2. จำนวนผู้สำเร็จการศึกษา","คน",260,null,""]
[null,null,null,"3. จำนวนนักศึกษาคงอยู่","คน",1390,null,""]
[null,null,null,"4. ร้อยละของผู้สำเร็จการศึกษาตามมาตรฐานหลักสูตร","ร้อยละ",100,null,""]
[null,null,null,"5. ร้อยละของผู้สำเร็จการศึกษาที่จบการศึกษาตามมาตรฐานหลักสูตรภายในระยะเวลาที่กำหนด ","ร้อยละ",98,null,""]
[null,null,"3. โครงการผลิตบัณฑิตด้านสังคมศาสตร์\nผู้รับผิดชอบหลัก\nคณะศิลปศาสตร์\nคณะบริหารศาสตร์\nคณะนิติศาสตร์\nคณะรัฐศาสตร์","1. จำนวนนักศึกษาใหม่","คน",2485,null,""]
[null,null,null,"2. จำนวนผู้สำเร็จการศึกษา","คน",1600,null,""]
[null,null,null,"3. จำนวนนักศึกษาคงอยู่","คน",8890,null,""]
[null,null,null,"4.ร้อยละของผู้สำเร็จการศึกษาตามมาตรฐานหลักสูตร","ร้อยละ",100,null,""]
[null,null,null,"5.ร้อยละของผู้สำเร็จการศึกษาที่จบการศึกษาตามมาตรฐานหลักสูตรภายในระยะเวลาที่กำหนด","ร้อยละ",95,null,""]
[null,null,"4. โครงการผลิตแพทย์และพยาบาลเพิ่ม\nผู้รับผิดชอบหลัก\nวิทยาแพทยศาสตร์ฯ","1. จำนวนนักศึกษาใหม่ สาขาแพทยศาสตร์","คน","-",null,""]
[null,null,null,"2. จำนวนผู้สำเร็จการศึกษา สาขาแพทยศาสตร์","คน","-",null,""]
[null,null,"คณะเภสัชศาสตร์\nคณะพยาบาลศาสตร์","3. จำนวนนักศึกษาคงอยู่ สาขาแพทยศาสตร์","คน",16,null,""]
[null,null,null,"4. ร้อยละของผู้สำเร็จการศึกษาตามมาตรฐานหลักสูตร สาขาแพทยศาสตร์","ร้อยละ",100,null,""]
[null,null,null,"5. ร้อยละของผู้สำเร็จการศึกษาที่จบการศึกษาตามมาตรฐานหลักสูตรภายในระยะเวลาที่กำหนด สาขาแพทยศาสตร์","ร้อยละ",98,null,""]
[null,null,null,"6. จำนวนนักศึกษาใหม่ สาขาพยาบาลศาสตร์","คน","-",null,""]
[null,null,null,"7. จำนวนผู้สำเร็จการศึกษา สาขาพยาบาลศาสตร์","คน",40,null,""]
[null,null,null,"8. จำนวนนักศึกษาคงอยู่ สาขาพยาบาลศาสตร์","คน",80,null,""]
[null,null,null,"9. ร้อยละของผู้สำเร็จการศึกษาตามมาตรฐานหลักสูตร สาขาพยาบาลศาสตร์","ร้อยละ",100,null,""]
[null,null,null,"10. ร้อยละของผู้สำเร็จการศึกษาที่จบการศึกษาตามมาตรฐานหลักสูตรภายในระยะเวลาที่กำหนด สาขาพยาบาลศาสตร์","ร้อยละ",98,null,""]
["2. สร้างองค์ความรู้และนวัตกรรมที่นำไปประยุกต์ใช้ประโยชน์เพื่อพัฒนาคุณภาพชีวิตของประชาชนในภาคตะวันออกเฉียงเหนือและภูมิภาคลุ่มน้ำโขง","2. พัฒนางานวิจัยแบบมุ่งเป้าเพื่อสร้างองค์ความรู้และนวัตกรรม ที่มุ่งเน้นการพัฒนาคุณภาพชีวิตของประชาชนและสังคมในภูมิภาคลุ่มน้ำโขงอย่างยั่งยืน ","1. โครงการวิจัยเพื่อสร้าง สะสมองค์ความรู้ที่มีศักยภาพ\nผู้รับผิดชอบหลัก\nสำนักงานส่งเสริมบริหารงานวิจัยฯ\nประเด็นยุทธศาสตร์ที่ 2 3 และ 4","1. จำนวนโครงการวิจัยใหม่","โครงการ",59,null,""]
[null,null,null,"2. จำนวนโครงการวิจัยที่แล้วเสร็จ","โครงการ",41,null,""]
[null,null,null,"3. จำนวนโครงการวิจัยที่เป็นไปตามมาตรฐานที่กำหนด ","โครงการ",59,null,""]
[null,null,null,"4. ร้อยละของโครงการวิจัยที่แล้วเสร็จภายในระยะเวลาที่กำหนด  ","ร้อยละ",80,null,""]
[null,null,"2. โครงการเพื่อพัฒนาโครงสร้างพื้นฐานบุคลากรและระบบมาตรฐานการวิจัย","จำนวนของนักวิจัยที่ได้รับการพัฒนา","คน",25,null,""]
["3. บริการวิชาการอย่างมีส่วนร่วมเพื่อพัฒนาคุณภาพชีวิตของประชาชนในภาคตะวันออกเฉียงเหนือและภูมิภาคลุ่มน้ำโขง","3. ส่งเสริม สนับสนุนการบูรณาการงานบริการวิชาการอย่างมีส่วนร่วม เพื่อเสริมสร้างความเข้มแข็งและเพิ่มศักยภาพของชุมชนและสังคม  บนพื้นฐานความพอเพียง เพื่อการพัฒนาที่ยั่งยืน ","1. โครงการบริการวิชาการของมหาวิทยาลัย","1. จำนวนโครงการ/กิจกรรมบริการวิชาการ","โครงการ",145,null,""]
[null,null,null,"2. ร้อยละของงานวิชาการแล้วเสร็จตามที่กำหนด","ร้อยละ",95,null,""]
[null,null,null,"3. ร้อยละของงานบริการวิชาการแล้ว เสร็จตามระยะเวลาที่กำหนด","ร้อยละ",95,null,""]
[null,null,null,"4. จำนวนผู้เข้ารับบริการ","คน",244400,null,""]
[null,null,null,"5. ค่าใช้จ่ายการให้บริการวิชาการตามงบประมาณที่ได้รับจัดสรร","ล้านบาท",62.459099999999999,null,""]
[null,null,"2. โครงการสนับสนุนจัดการศึกษาขั้นพื้นฐาน","1. จำนวนนักเรียนที่ได้รับการสนับสนุนตามโครงการ","คน",90,null,""]
[null,null,null,"2. ร้อยละของค่าใช้จ่ายที่ผู้ปกครองสามารถลดค่าใช้จ่ายตามรายการที่ได้รับการสนับสนุน","ร้อยละ",100,null,""]
["4. ทำนุบำรุงศิลปวัฒนธรรมภูมิปัญญา\nท้องถิ่นและสร้างความเข้าใจในวัฒน\nธรรมที่หลากหลายของภูมิภาคลุ่มน้ำโขง","4. อนุรักษ์ สืบสาน ภูมิปัญญาท้องถิ่น ศิลปะและวัฒนธรรม เพื่อให้เกิดจิตสำนึกรักท้องถิ่นและประเทศชาติ ","โครงการพัฒนาระบบและกลไกการทำนุบำรุงศิลปวัฒนธรรม","1. จำนวนผู้เข้าร่วมโครงการ","คน",17600,null,""]
[null,null,null,"1. จำนวนโครงการทำนุบำรุงศิลปวัฒนธรรม","โครงการ",85,null,""]
[null,null,null,"2. ร้อยละความพึงพอใจของผู้รับบริการในกระบวนการให้บริการ","ร้อยละ",80,null,""]
[null,null,null,"4. ร้อยละของงานทำนุบำรุงศิลปวัฒนธรรมแล้วเสร็จตามระยะเวลาที่กำหนด","ร้อยละ",95,null,""]
[null,null,null,"5. ค่าใช้จ่ายของการทำนุบำรุงศิลปวัฒนธรรมตามงบประมาณที่ได้รับจัดสรร","ล้านบาท",10.407999999999999,null,""]
["5. พัฒนาระบบบริหารจัดการ ระบบบริหารงานทรัพยากรมนุษย์และโครงสร้างพื้นฐานทางเทคโนโลยีสารสนเทศให้สามารถรองรับการพัฒนามหาวิทยาลัยได้อย่างมีประสิทธิภาพ","5. บริหารจัดการภายใต้หลักธรรมาภิบาล สามารถปรับตัวให้ทันกับพลวัตรการเปลี่ยนแปลง ยกระดับคุณภาพให้เป็นมาตรฐานสากล และ สร้างสภาพแวดล้อมที่เอื้อต่อการเรียนรู้และการทำงานอย่างมีความสุข","โครงการพัฒนาระบบบริหารจัดการภายใต้หลักธรรมาภิบาล\n\n","1. เกณฑ์ระดับคุณธรรมและความโปร่งใสของการดำเนินงานของหน่วยงานภาครัฐ (ข้อ 1,4,7)","คะแนน",5,null,""]
[null,"6. พัฒนาทรัพยากรมนุษย์ให้มีประสิทธิภาพ มีสมรรถนะ ปฏิบัติงานอย่างมีความสุข และมีความผูกพันกับองค์กร","โครงการพัฒนาระบบบริหารทรัพยากรบุคคล\nผู้รับผิดชอบหลัก\nกองการเจ้าหน้าที่","1. ร้อยละของบุคลากรที่มีสรรถนะสูง","ร้อยละ",55,null,""]
[null,null,null,"2. จำนวนของบุคลากรที่ได้รับรางวัลหรือการยกย่องเชิดชูเกียรติ หรือสร้างชื่อเสียงให้กับมหาวิทยาลัย","คน",30,null,""]
[null,null,null,"3. ค่าคะแนนเฉลี่ยของบุคลากรทุกระดับที่มีความสุขในการปฏิบัติงาน","คะแนน",50,null,""]
[null,null,null,"4. ค่าคะแนนเฉลี่ยของบุคลากรที่มีความผูกพันต่อองค์กร","คะแนน",50,null,""]
[null,"7. พัฒนาโครงสร้างพื้นฐานด้านเทคโนโลยีสารสนเทศและการสื่อสารที่ทันสมัย มั่นคง ปลอดภัย และนำระบบเทคโนโลยีสารสนเทศมาใช้เพื่อสนับสนุน การเรียนรู้แบบอิเล็กทรอนิกส์ การบริการทางการศึกษา การบริหารจัดการ และยกระดับความสามารถของนักศึกษาและบุคลากรในการใช้เทคโนโลยีสารสนเทศ เพื่อพัฒนาสู่การเป็นมหาวิทยาลัยดิจิตอล","โครงการพัฒนาโครงสร้างพื้นฐานด้านเทคโนโลยีสารสนเทศและการสื่อสาร\nผู้รับผิดชอบหลัก\nสำนักคอมพิวเตอร์และเครือข่าย","1. ร้อยละของจำนวนอุปกรณ์กระจายสัญญาณเครือข่ายไร้สาย (Access Point) ที่สามารถใช้งานได้(12 ชั่วโมง = 1 ครั้ง/อุปกรณ์)","ร้อยละ",95,null,""]
[null,null,null,"2. ร้อยละของจำนวนอุปกรณ์กระจายสัญญาณเครือข่ายไร้สาย (Access Point) ที่ครอบคลุมพื้นที่ให้บริการ","ร้อยละ",95,null,""]
[null,null,null,"3. จำนวนครั้งต่อปีที่ระบบเครือข่าย   ไม่สามารถใช้งานได้เกิน 30 นาที","ครั้ง",1,null,""]
[null,null,null,"4. ร้อยละการเพิ่มความเร็วของระบบเครือข่ายเทียบกับความเร็วของระบบเครือข่ายในปีที่ผ่านมา ","ร้อยละ",10,null,""]